bitfinex/quotes_SOLUSD_20241101
["timestamp","ask_amount","ask_price","bid_price","bid_amount"]
[1730502705360,8.91391785,166.15,166.14,6.019]
[1730502712150,8.91391785,166.16,166.14,21.0665]
[1730502717365,8.91391785,166.17,166.14,21.0665]
[1730502717562,8.91391785,166.19,166.14,60.07551785]
[1730502718081,8.91391785,166.2,166.14,60.07551785]
[1730502718251,8.91391785,166.2,166.15,20.0]
[1730502719861,8.91391785,166.2,166.16,21.0639]
[1730502722757,8.91391785,166.21,166.16,29.97781785]
[1730502722964,8.91391785,166.21,166.16,60.06921785]
[1730502723168,8.91391785,166.22,166.17,28.91391785]
[1730502724770,8.91391785,166.22,166.18,21.0614]
[1730502725966,8.91391785,166.23,166.18,21.0614]
[1730502726763,8.91391785,166.23,166.18,29.97531785]
[1730502728486,8.91391785,166.24,166.18,29.97531785]
[1730502729164,8.91391785,166.24,166.17,20.0]
[1730502729165,8.91391785,166.24,166.2,21.0589]
[1730502730771,23.776884,166.24,166.2,23.95601785]
[1730502731072,78.91391785,166.26,166.2,23.95601785]
[1730502731264,23.776884,166.25,166.2,23.95601785]
[1730502732058,23.776884,166.25,166.21,20.0]
[1730502732260,23.776884,166.25,166.22,21.0564]
[1730502737987,23.776884,166.25,166.22,29.97031785]
[1730502738298,8.91391785,166.28,166.22,51.137]
[1730502738487,0.4244767,166.29,166.25,8.91391785]
[1730502739585,24.2013607,166.29,166.26,21.0512]
[1730502742390,24.2013607,166.29,166.26,8.91391785]
[1730502742689,24.2013607,166.29,166.25,8.91391785]
[1730502743298,0.4244767,166.29,166.26,21.0512]
[1730502743591,0.4244767,166.29,166.26,29.96511785]
[1730502744895,0.4244767,166.29,166.26,21.0512]
[1730502747009,0.4244767,166.29,166.26,29.96511785]
[1730502750094,0.4244767,166.29,166.27,8.91391785]
[1730502750476,0.4244767,166.29,166.26,8.91391785]
[1730502751696,33.11527855,166.29,166.27,21.05]
[1730502752275,33.11527855,166.29,166.27,15.0357]
[1730502752994,33.11527855,166.29,166.27,21.05]
[1730502753505,24.2013607,166.29,166.27,15.0357]
[1730502759806,24.2013607,166.29,166.25,20.0]
[1730502760784,24.2013607,166.29,166.25,8.91391785]
[1730502761484,24.2013607,166.29,166.26,21.0512]
[1730502763996,24.2013607,166.29,166.26,15.0366]
[1730502765511,24.2013607,166.29,166.26,21.0512]
[1730502769327,24.2013607,166.29,166.26,23.95051785]
[1730502769620,0.4244767,166.29,166.26,23.95051785]
[1730502769999,0.4244767,166.29,166.27,8.91391785]
[1730502771315,0.4244767,166.29,166.27,21.05]
[1730502772910,0.4244767,166.29,166.27,15.0357]
[1730502774421,0.4244767,166.29,166.27,21.05]
[1730502785232,0.4244767,166.29,166.27,15.0357]
[1730502795544,0.4244767,166.29,166.27,21.05]
[1730502803033,0.4244767,166.29,166.27,29.96391785]
[1730502803449,0.4244767,166.29,166.28,8.91391785]
[1730502803634,0.4244767,166.29,166.27,29.96391785]
[1730502804430,0.4244767,166.29,166.28,8.91391785]
[1730502805749,0.4244767,166.29,166.28,14.92781785]
[1730502821358,0.4244767,166.29,166.28,6.0139]
[1730502822237,0.4244767,166.29,166.27,21.05]
[1730502823648,0.4244767,166.29,166.27,23.94961785]
[1730502824660,0.4244767,166.29,166.27,29.96391785]
[1730502825353,0.4244767,166.29,166.28,8.91391785]
[1730502827656,0.4244767,166.29,166.28,14.92781785]
[1730502837267,0.4244767,166.29,166.28,38.21573276]
[1730502837448,0.4244767,166.29,166.28,43.47455935]
[1730502842176,0.4244767,166.29,166.28,43.46354419]
[1730502844470,0.4244767,166.29,166.28,38.21078952]
[1730502859872,0.4244767,166.29,166.28,34.92781785]
[1730502863989,0.4244767,166.29,166.28,38.21182159]
[1730502869677,7.67e-05,166.29,166.28,38.21182159]
[1730502870083,7.67e-05,166.29,166.28,34.92781785]
[1730502870685,7.67e-05,166.29,166.28,14.92781785]
[1730502871689,7.67e-05,166.29,166.28,6.0139]
[1730502874598,7.67e-05,166.29,166.28,8.91391785]
[1730502876702,7.67e-05,166.29,166.28,14.92781785]
[1730502877302,7.67e-05,166.29,166.28,6.0139]
[1730502890704,7.67e-05,166.29,166.28,8.91391785]
[1730502892308,7.67e-05,166.29,166.28,14.92781785]
[1730502899409,7.67e-05,166.29,166.27,21.05]
[1730502900307,7.67e-05,166.29,166.27,29.96391785]
[1730502904803,7.67e-05,166.29,166.28,8.91391785]
[1730502906711,7.67e-05,166.29,166.28,14.92781785]
[1730502910293,7.67e-05,166.29,166.28,18.21975184]
[1730502917121,7.67e-05,166.29,166.28,14.92781785]
[1730502917309,7.67e-05,166.29,166.28,18.22171135]
[1730502917620,7.67e-05,166.29,166.28,18.22170428]
[1730502918125,7.67e-05,166.29,166.28,9.30778643]
[1730502918297,7.67e-05,166.29,166.28,6.0139]
[1730502919002,7.67e-05,166.29,166.27,21.05]
[1730502920945,7.67e-05,166.29,166.27,29.96391785]
[1730502922927,7.67e-05,166.29,166.27,21.05]
[1730502925019,93.776884,166.28,166.26,12.28502461]
[1730502925335,93.776884,166.26,166.22,8.91391785]
[1730502925626,93.776884,166.26,166.16,51.3669714]
[1730502925627,23.776884,166.25,166.23,3.29251244]
[1730502925811,23.776884,166.25,166.21,8.91391785]
[1730502926015,23.776884,166.25,166.22,3.29334193]
[1730502926227,23.776884,166.25,166.21,8.91391785]
[1730502926411,23.776884,166.25,166.22,3.29206255]
[1730502926606,23.776884,166.25,166.23,6.0157]
[1730502927508,23.776884,166.25,166.22,21.0558]
[1730502936037,23.276884,166.25,166.22,21.0558]
[1730502938732,70.0,166.28,166.24,8.91391785]
[1730502939234,78.91391785,166.28,166.23,8.91391785]
[1730502940330,23.776884,166.27,166.24,21.0537]
[1730502942742,7.67e-05,166.29,166.26,8.91391785]
[1730502943237,7.67e-05,166.29,166.28,8.91391785]
[1730502943743,7.67e-05,166.29,166.27,8.91391785]
[1730502945041,7.67e-05,166.29,166.28,14.92781785]
[1730502945541,7.67e-05,166.29,166.28,6.0139]
[1730502946124,23.776884,166.31,166.28,6.0139]
[1730502946326,23.776884,166.32,166.28,21.0487]
[1730502948025,23.776884,166.32,166.28,8.91391785]
[1730502950025,23.776884,166.32,166.28,21.0487]
[1730502951251,93.776884,166.32,166.28,21.0487]
[1730502951429,8.91391785,166.31,166.28,21.0487]
[1730502951633,23.776884,166.3,166.28,21.0487]
[1730502951951,23.776884,166.3,166.28,15.0348]
[1730502951952,102.69080185,166.3,166.28,15.0348]
[1730502952142,102.19080185,166.3,166.28,15.0348]
[1730502952817,93.276884,166.3,166.28,15.0348]
[1730502955539,102.19080185,166.3,166.27,6.0143]
[1730502956633,102.19080185,166.3,166.26,21.0512]
[1730502957443,93.276884,166.3,166.26,21.0512]
[1730502957638,93.276884,166.3,166.26,29.96511785]
[1730502962358,70.0,166.32,166.29,8.91391785]
[1730502963057,8.91391785,166.34,166.29,8.91391785]
[1730502963261,70.0,166.35,166.31,8.91391785]
[1730502963655,70.0,166.35,166.3,8.91391785]
[1730502964072,78.91391785,166.33,166.27,38.98541785]
[1730502964247,8.91391785,166.32,166.27,44.99971785]
[1730502964860,23.776884,166.31,166.27,44.99971785]
[1730502965464,23.776884,166.31,166.27,60.03541785]
[1730502966163,23.776884,166.31,166.28,8.91391785]
[1730502966346,70.0,166.35,166.3,8.91391785]
[1730502966542,70.0,166.37,166.33,8.91391785]
[1730502966842,24.07121785,166.38,166.28,6.4227]
[1730502966843,78.91391785,166.35,166.3,8.91391785]
[1730502967058,78.91391785,166.35,166.29,20.0]
[1730502967264,70.0,166.35,166.29,20.0]
[1730502967564,70.0,166.35,166.3,21.0462]
[1730502968241,70.0,166.37,166.33,8.91391785]
[1730502968964,70.0,166.37,166.32,8.91391785]
[1730502969162,78.91391785,166.37,166.32,8.91391785]
[1730502969844,23.776884,166.36,166.33,21.0424]
[1730502971860,32.69080185,166.36,166.33,21.0424]
[1730502972060,23.776884,166.34,166.32,6.0124]
[1730502972370,8.91391785,166.33,166.27,38.98541785]
[1730502972663,32.69080185,166.32,166.28,21.0484]
[1730502973072,23.776884,166.32,166.28,21.0484]
[1730502973362,23.776884,166.32,166.29,8.91391785]
[1730502973545,23.776884,166.32,166.28,23.94871785]
[1730502975756,23.776884,166.32,166.28,29.96261785]
[1730502977168,23.776884,166.32,166.28,21.0487]
[1730502977546,32.69080185,166.32,166.28,21.0487]
[1730502977741,32.69080185,166.3,166.25,8.91391785]
[1730502979462,23.776884,166.3,166.25,8.91391785]
[1730502979767,23.776884,166.3,166.26,21.0512]
[1730502980167,23.776884,166.3,166.26,29.96511785]
[1730502982663,23.776884,166.3,166.26,15.0366]
[1730502983251,32.69080185,166.3,166.26,15.0366]
[1730502983567,38.70400185,166.3,166.26,15.0366]
[1730502984160,32.69080185,166.3,166.26,15.0366]
[1730502985364,23.776884,166.28,166.26,21.0512]
[1730502985557,32.69080185,166.28,166.24,6.0151]
[1730502985743,70.0,166.26,166.23,15.0387]
[1730502985948,32.69080185,166.25,166.19,15.40711785]
[1730502986163,23.776884,166.23,166.2,21.0583]
[1730502986755,70.0,166.22,166.17,8.91391785]
[1730502986954,32.69080185,166.21,166.18,15.0439]
[1730502987263,8.91391785,166.2,166.18,15.0439]
[1730502988367,102.69080185,166.19,166.15,15.0462]
[1730502988769,8.91391785,166.18,166.15,15.0462]
[1730502988951,32.69080185,166.17,166.12,21.069]
[1730502989261,8.91391785,166.16,166.12,21.069]
[1730502989465,23.776884,166.14,166.12,21.069]
[1730502989672,78.91391785,166.13,166.09,21.0726]
[1730502989854,23.776884,166.12,166.09,21.0726]
[1730502990055,32.69080185,166.12,166.09,21.0726]
[1730502990782,32.69080185,166.1,166.06,21.0765]
[1730502990953,8.91391785,166.08,166.06,21.0765]
[1730502991280,78.91391785,166.09,166.06,21.0765]
[1730502991572,78.91391785,166.13,166.07,8.91391785]
[1730502991756,23.776884,166.12,166.07,8.91391785]
[1730502992470,32.69080185,166.12,166.07,8.91391785]
[1730502992874,32.69080185,166.12,166.08,21.074]
[1730502993370,23.776884,166.12,166.08,21.074]
[1730502993751,32.69080185,166.12,166.08,21.074]
[1730502993954,23.776884,166.12,166.08,21.074]
[1730502994457,23.776884,166.12,166.08,29.98791785]
[1730502995366,70.0,166.15,166.1,8.91391785]
[1730502995977,78.91391785,166.15,166.1,8.91391785]
[1730502996657,78.91391785,166.15,166.1,14.93401785]
[1730502996856,23.776884,166.14,166.1,14.93401785]
[1730502997056,23.776884,166.14,166.1,29.98511785]
[1730502999073,23.776884,166.14,166.1,28.48511785]
[1730502999280,70.0,166.17,166.13,8.91391785]
[1730502999457,70.0,166.17,166.15,8.91391785]
[1730502999653,25.17341785,166.21,166.16,8.91391785]
[1730502999654,70.0,166.2,166.16,8.91391785]
[1730502999865,14.93001785,166.22,166.11,6.6471]
[1730502999866,76.0161,166.22,166.17,8.91391785]
[1730503000067,70.0,166.19,166.16,8.91391785]
[1730503000370,70.0,166.19,166.12,20.0]
[1730503000571,70.0,166.19,166.16,8.91391785]
[1730503001480,23.776884,166.18,166.16,14.93211785]
[1730503003492,23.776884,166.18,166.15,8.91391785]
[1730503004580,23.776884,166.18,166.14,23.96061785]
[1730503004765,23.776884,166.18,166.14,15.0467]
[1730503005775,23.776884,166.18,166.14,21.0657]
[1730503005964,23.776884,166.18,166.14,29.97961785]
[1730503008880,23.776884,166.18,166.14,15.0467]
[1730503009284,23.776884,166.15,166.14,15.0467]
[1730503010179,23.776884,166.15,166.13,8.91391785]
[1730503011480,23.776884,166.15,166.13,14.93291785]
[1730503012483,23.776884,166.15,166.12,8.91391785]
[1730503013695,23.776884,166.15,166.09,21.0728]
[1730503013696,23.776884,166.15,166.11,8.91391785]
[1730503013864,70.0,166.14,166.11,8.91391785]
[1730503014065,23.776884,166.13,166.11,8.91391785]
[1730503014777,23.776884,166.13,166.11,6.0199]
[1730503015763,23.776884,166.13,166.11,14.93381785]
[1730503016568,23.776884,166.13,166.11,21.0701]
[1730503018187,23.776884,166.13,166.11,15.0502]
[1730503019598,23.776884,166.13,166.11,21.0703]
[1730503021490,23.776884,166.13,166.08,23.96631785]
[1730503021683,23.776884,166.11,166.08,23.96631785]
[1730503022068,23.776884,166.11,166.09,8.91391785]
[1730503022274,23.776884,166.11,166.1,8.91391785]
[1730503022676,23.776884,166.11,166.09,14.93451785]
[1730503022994,23.776884,166.13,166.09,29.98651785]
[1730503024087,23.776884,166.13,166.09,21.0726]
[1730503029892,93.776884,166.09,166.05,6.0222]
[1730503030081,8.91391785,166.08,166.05,6.0222]
[1730503030470,8.91391785,166.08,166.04,15.0558]
[1730503030676,8.91391785,166.07,166.04,21.0783]
[1730503031078,70.0,166.0,165.96,6.0252]
[1730503031398,8.91391785,166.0,165.96,9.17434018]
[1730503031692,8.91391785,165.98,165.97,15.0627]
[1730503033476,23.776884,165.97,165.94,6.27741502]
[1730503033679,8.91391785,165.95,165.93,15.0659]
[1730503033888,8.91391785,165.95,165.93,21.0923]
[1730503034478,83.96720143,165.96,165.93,21.0923]
[1730503034778,23.776884,165.95,165.93,15.0659]
[1730503035286,83.96720143,165.98,165.93,15.0659]
[1730503035605,23.776884,165.97,165.93,15.0659]
[1730503035782,37.74408543,165.97,165.93,15.0659]
[1730503036891,23.776884,165.97,165.93,29.03310143]
[1730503037194,83.96720143,166.0,165.94,13.96720143]
[1730503037397,83.96720143,166.02,165.97,13.96720143]
[1730503037591,83.96720143,166.02,165.96,13.96720143]
[1730503037778,83.96720143,166.06,166.01,13.96720143]
[1730503037977,70.0,166.06,166.03,13.96720143]
[1730503038187,70.0,166.06,166.04,13.96720143]
[1730503038479,70.0,166.06,166.02,13.96720143]
[1730503039105,70.0,166.06,166.03,6.023]
[1730503039290,70.0,166.06,166.03,19.99020143]
[1730503039490,70.0,166.06,166.03,6.023]
[1730503040490,70.0,166.06,166.03,21.0805]
[1730503041401,70.0,166.06,166.03,13.96720143]
[1730503041585,23.776884,166.07,166.04,13.96720143]
[1730503042584,23.776884,166.07,166.04,19.98970143]
[1730503042902,23.776884,166.07,166.04,6.0225]
[1730503045585,23.776884,166.07,166.02,13.96720143]
[1730503045781,23.776884,166.05,165.99,35.05270143]
[1730503045987,23.776884,166.05,166.0,13.96720143]
[1730503047285,23.776884,166.05,166.01,6.0237]
[1730503047695,23.776884,166.03,166.0,19.99120143]
[1730503047898,23.776884,166.03,166.0,6.024]
[1730503048205,23.776884,166.03,165.99,21.0855]
[1730503054505,70.0,166.04,165.99,21.0855]
[1730503054506,70.0,166.06,165.99,51.2077]
[1730503054804,83.96720143,166.06,166.0,13.96720143]
[1730503055004,83.96720143,166.04,165.99,21.0855]
[1730503055613,70.0,166.04,165.99,21.0855]
[1730503055799,23.776884,166.03,165.99,21.0855]
[1730503056200,23.776884,166.03,165.99,13.96720143]
[1730503056908,23.776884,166.03,165.98,44.08970143]
[1730503057316,23.776884,166.01,165.96,13.96720143]
[1730503058110,6.0231,166.03,165.95,21.0906]
[1730503058111,37.74408543,165.99,165.95,21.0906]
[1730503058315,70.0,165.98,165.95,21.0906]
[1730503058610,23.776884,165.95,165.93,6.0265]
[1730503059510,23.776884,165.95,165.92,15.0674]
[1730503059704,23.776884,165.95,165.92,21.0944]
[1730503060106,23.776884,165.95,165.92,30.03012308]
[1730503060617,23.776884,165.95,165.92,35.05761575]
[1730503061021,70.0,165.98,165.93,13.96321575]
[1730503061323,70.0,165.98,165.92,21.0944]
[1730503061324,23.776884,165.97,165.94,13.96321575]
[1730503061811,23.776884,165.97,165.94,21.091]
[1730503062015,37.74009975,165.95,165.91,21.0952]
[1730503062213,23.776884,165.93,165.91,21.0952]
[1730503062920,37.74009975,165.93,165.91,21.0952]
[1730503063429,93.776884,165.91,165.89,15.0702]
[1730503063718,93.776884,165.89,165.88,0.6080693]
[1730503064017,107.74009975,165.89,165.88,0.6080693]
[1730503064416,23.776884,165.89,165.88,0.6080693]
[1730503064620,93.776884,165.89,165.88,0.6080693]
[1730503064822,107.74009975,165.89,165.88,0.6080693]
[1730503071906,93.776884,165.89,165.88,0.6080693]
[1730503072400,107.74009975,165.89,165.88,0.6080693]
[1730503073218,23.776884,165.89,165.88,6.6364693]
[1730503073431,23.776884,165.9,165.88,21.7075693]
[1730503073720,83.96321575,165.91,165.88,21.7075693]
[1730503075404,23.776884,165.9,165.88,21.7075693]
[1730503076719,70.0,165.93,165.89,13.96321575]
[1730503076901,70.0,165.95,165.9,13.96321575]
[1730503077103,83.96321575,165.95,165.9,13.96321575]
[1730503078029,70.0,165.95,165.91,13.96321575]
[1730503079336,23.776884,165.94,165.92,6.027]
[1730503080210,23.776884,165.94,165.92,19.99021575]
[1730503080523,23.776884,165.94,165.92,35.05771575]
[1730503081029,23.776884,165.94,165.92,21.0945]
[1730503081525,23.776884,165.94,165.9,6.0273]
[1730503081702,37.74009975,165.94,165.9,6.0273]
[1730503081905,23.776884,165.94,165.9,6.0273]
[1730503082335,23.776884,165.94,165.9,21.0966]
[1730503083941,70.0,165.92,165.9,15.0693]
[1730503084929,83.96321575,165.92,165.9,15.0693]
[1730503085321,23.776884,165.91,165.88,0.6080693]
[1730503085526,23.776884,165.89,165.88,0.6080693]
[1730503085742,37.74009975,165.89,165.88,0.6080693]
[1730503086055,23.776884,165.89,165.88,0.6080693]
[1730503087137,37.74009975,165.89,165.88,0.6080693]
[1730503088343,23.776884,165.89,165.88,0.6080693]
[1730503094836,55.37784698,165.89,165.88,0.6080693]
[1730503097858,49.34984698,165.89,165.88,0.6080693]
[1730503098436,75.57784698,165.89,165.88,0.4826693]
[1730503098951,75.47784698,165.89,165.88,0.4826693]
[1730503101035,75.57784698,165.89,165.88,0.4826693]
[1730503102340,69.44984698,165.89,165.88,0.4826693]
[1730503102541,75.47784698,165.89,165.88,0.4826693]
[1730503104546,25.57296298,165.89,165.88,0.4826693]
[1730503104742,8.94376298,165.89,165.88,0.4826693]
[1730503105861,32.72064698,165.89,165.88,0.4826693]
[1730503106447,23.776884,165.89,165.88,0.4826693]
[1730503107361,32.72064698,165.89,165.88,0.4826693]
[1730503108762,23.776884,165.89,165.88,0.4826693]
[1730503112354,70.0,165.92,165.88,6.5110693]
[1730503112557,70.0,165.92,165.88,21.5821693]
[1730503113152,70.0,165.92,165.88,30.52593228]
[1730503114463,23.776884,165.93,165.9,8.94376298]
[1730503114649,70.0,165.94,165.9,8.94376298]
[1730503114958,70.0,165.94,165.89,8.94376298]
[1730503115573,70.0,165.94,165.9,21.097]
[1730503115872,70.0,165.92,165.9,21.097]
[1730503118159,70.0,165.92,165.9,15.0693]
[1730503120657,70.0,165.92,165.9,21.097]
[1730503121076,70.0,165.92,165.9,30.04076298]
[1730503121281,70.0,165.92,165.9,21.097]
[1730503123861,23.776884,165.93,165.9,24.01306298]
[1730503124063,70.0,165.94,165.91,8.94376298]
[1730503124373,70.0,165.94,165.92,8.94376298]
[1730503125284,70.0,165.94,165.91,8.94376298]
[1730503126171,70.0,165.94,165.9,30.04076298]
[1730503127552,70.0,165.94,165.91,8.94376298]
[1730503128187,70.0,165.94,165.92,8.94376298]
[1730503130084,93.776884,165.94,165.93,8.94376298]
[1730503131092,93.776884,165.92,165.88,9.42643228]
[1730503131376,93.776884,165.89,165.88,0.4826693]
[1730503139968,93.776884,165.89,165.88,6.5110693]
[1730503140483,23.776884,165.9,165.88,30.52593228]
[1730503140678,23.776884,165.9,165.89,8.94376298]
[1730503140880,23.776884,165.92,165.89,8.94376298]
[1730503141483,23.776884,165.92,165.9,8.94376298]
[1730503141672,23.776884,165.92,165.91,6.0273]
[1730503143094,23.776884,165.92,165.9,21.0964]
[1730503143276,23.776884,165.9,165.88,6.5109693]
[1730503144184,23.776884,165.9,165.88,0.4826693]
[1730503144785,93.776884,165.89,165.88,0.4826693]
[1730503147993,23.776884,165.89,165.88,6.5110693]
[1730503148965,23.776884,165.9,165.88,30.52593228]
[1730503149168,70.0,165.91,165.88,30.52593228]
[1730503149897,70.0,165.91,165.89,8.94376298]
[1730503150378,70.0,165.91,165.89,14.97156298]
[1730503150579,16.2201,165.98,165.9,8.94376298]
[1730503150580,70.0,165.93,165.9,8.94376298]
[1730503150777,70.0,165.93,165.91,8.94376298]
[1730503151269,70.0,165.93,165.9,8.94376298]
[1730503151794,70.0,165.95,165.92,8.94376298]
[1730503152602,70.0,165.95,165.93,6.0266]
[1730503153493,70.0,165.95,165.94,8.94376298]
[1730503153686,93.776884,165.95,165.94,8.94376298]
[1730503153889,93.776884,165.95,165.93,8.94376298]
[1730503154700,93.776884,165.95,165.93,14.97016298]
[1730503157995,70.0,165.97,165.94,8.94376298]
[1730503158186,23.776884,165.96,165.94,8.94376298]
[1730503158493,70.0,165.97,165.94,8.94376298]
[1730503158677,70.0,165.97,165.95,8.94376298]
[1730503159286,70.0,165.97,165.95,14.96946298]
[1730503159480,23.776884,165.96,165.94,6.0261]
[1730503164306,23.776884,165.96,165.94,8.94376298]
[1730503165396,70.0,165.97,165.94,8.94376298]
[1730503166390,70.0,165.97,165.92,8.94376298]
[1730503166904,23.776884,165.96,165.92,8.94376298]
[1730503167201,23.776884,165.96,165.93,8.94376298]
[1730503167408,23.776884,165.96,165.94,6.0262]
[1730503167614,23.776884,165.96,165.94,14.96996298]
[1730503167983,23.776884,165.96,165.94,6.0262]
[1730503169909,14.96836298,165.99,165.95,8.94376298]
[1730503169910,70.0,165.99,165.95,8.94376298]
[1730503170216,70.0,165.99,165.94,21.0918]
[1730503170217,70.0,165.99,165.94,30.03556298]
[1730503170512,6.024,166.01,165.94,30.03556298]
[1730503170513,70.0,165.97,165.94,21.0918]
[1730503171409,23.776884,165.96,165.94,15.0656]
[1730503172822,70.0,165.95,165.92,8.94376298]
[1730503173116,70.0,165.95,165.92,14.97066298]
[1730503173291,70.0,165.95,165.92,6.0269]
[1730503189304,23.776884,165.96,165.92,6.0269]
[1730503191223,70.0,165.95,165.92,6.0269]
[1730503191428,70.0,165.93,165.91,15.0682]
[1730503191600,23.776884,165.94,165.91,15.0682]
[1730503191922,70.0,165.93,165.91,15.0682]
[1730503192719,70.0,165.93,165.91,24.01196298]
[1730503194629,23.776884,165.94,165.91,24.01196298]
[1730503195415,14.96936298,165.96,165.91,15.0682]
[1730503195615,23.776884,165.95,165.91,15.0682]
[1730503195815,70.0,165.93,165.91,15.0682]
[1730503200216,70.0,165.93,165.89,39.08416298]
[1730503200217,23.776884,165.92,165.89,14.97166298]
[1730503200414,23.776884,165.92,165.89,6.0279]
[1730503201350,23.776884,165.92,165.89,21.0981]
[1730503201639,23.776884,165.92,165.89,30.04186298]
[1730503203445,23.776884,165.92,165.9,8.94376298]
[1730503203634,23.776884,165.92,165.9,14.97116298]
[1730503204035,70.0,165.95,165.91,8.94376298]
[1730503204350,70.0,165.97,165.93,8.94376298]
[1730503205252,23.776884,165.96,165.93,8.94376298]
[1730503205454,70.0,165.99,165.95,8.94376298]
[1730503205627,70.0,166.01,165.97,8.94376298]
[1730503206332,70.0,166.01,165.98,8.94376298]
[1730503206525,70.0,166.01,165.96,21.0893]
[1730503206526,70.0,166.03,165.99,8.94376298]
[1730503207038,70.0,166.03,166.0,8.94376298]
[1730503207359,70.0,166.05,166.02,8.94376298]
[1730503207525,8.94376298,166.07,166.03,8.94376298]
[1730503207526,70.0,166.07,166.03,8.94376298]
[1730503207728,70.0,166.07,166.04,8.94376298]
[1730503208546,70.0,166.07,166.03,8.94376298]
[1730503209159,70.0,166.07,166.02,30.02516298]
[1730503209450,70.0,166.07,166.03,8.94376298]
[1730503209855,70.0,166.07,166.03,14.96656298]
[1730503210747,23.776884,166.06,166.03,14.96656298]
[1730503211651,70.0,166.05,166.03,8.94376298]
[1730503211843,70.0,166.05,166.02,15.0584]
[1730503213052,70.0,166.03,166.0,14.96776298]
[1730503213241,70.0,166.03,166.0,6.024]
[1730503213843,70.0,166.03,166.0,30.02796298]
[1730503214060,70.0,166.03,166.01,8.94376298]
[1730503214554,23.776884,166.04,166.01,8.94376298]
[1730503215948,70.0,166.03,166.01,8.94376298]
[1730503216342,70.0,166.03,166.0,30.02796298]
[1730503216952,70.0,166.03,166.0,21.0842]
[1730503229447,70.0,166.0,165.97,6.0248]
[1730503229653,23.776884,165.99,165.96,15.063]
[1730503229852,32.72064698,165.99,165.96,15.063]
[1730503230447,32.72064698,165.99,165.96,21.0884]
[1730503230647,32.72064698,165.99,165.96,15.063]
[1730503230865,70.0,165.97,165.94,6.27053427]
[1730503231066,70.0,165.97,165.93,21.0928]
[1730503231864,78.94376298,165.95,165.91,12.29150151]
[1730503232180,78.94376298,165.95,165.91,6.0272]
[1730503232547,78.94376298,165.95,165.9,21.0967]
[1730503233173,78.94376298,165.95,165.9,30.04046298]
[1730503234678,70.0,165.95,165.9,30.04046298]
[1730503236780,70.0,165.95,165.91,8.94376298]
[1730503237779,70.0,165.95,165.92,6.027]
[1730503240268,70.0,165.95,165.9,24.01276298]
[1730503241478,78.94376298,165.95,165.9,30.04046298]
[1730503241777,70.0,165.95,165.91,8.94376298]
[1730503242673,70.0,165.95,165.9,30.04046298]
[1730503243483,70.0,165.97,165.93,21.0931]
[1730503243662,78.94376298,165.97,165.93,21.0931]
[1730503245880,70.0,165.97,165.93,21.0931]
[1730503246578,70.0,165.95,165.93,15.0665]
[1730503247278,78.94376298,165.95,165.89,15.20648017]
[1730503247579,23.776884,165.94,165.9,21.0966]
[1730503252983,23.776884,165.94,165.9,30.04036298]
[1730503253201,23.776884,165.94,165.91,8.94376298]
[1730503253369,23.776884,165.94,165.9,30.04036298]
[1730503255975,70.0,165.95,165.91,8.94376298]
[1730503258176,70.0,165.95,165.92,6.027]
[1730503261484,70.0,165.95,165.9,8.94376298]
[1730503261802,70.0,165.95,165.91,30.03946298]
[1730503264493,70.0,165.97,165.92,8.94376298]
[1730503265091,70.0,165.97,165.93,21.0931]
[1730503265294,70.0,165.97,165.93,30.03686298]
[1730503265466,23.95846298,165.99,165.93,30.03686298]
[1730503265467,84.96826298,165.99,165.93,30.03686298]
[1730503265669,70.0,165.97,165.93,30.03686298]
[1730503267294,70.0,165.97,165.93,21.0931]
[1730503275791,78.94376298,165.97,165.93,15.0665]
[1730503277098,78.94376298,165.95,165.92,6.027]
[1730503278406,23.776884,165.94,165.91,6.0273]
[1730503279085,32.72064698,165.94,165.9,27.35695211]
[1730503280500,23.776884,165.94,165.9,27.35695211]
[1730503285696,70.0,165.95,165.91,8.94376298]
[1730503286607,70.0,165.95,165.92,8.94376298]
[1730503286809,23.776884,165.96,165.93,8.94376298]
[1730503287506,23.776884,165.96,165.92,8.94376298]